bitfinex/quotes_ETHUSD_20220308
["timestamp","ask_amount","ask_price","bid_price","bid_amount"]
[1646782991342,0.021143,2578.6,2578.4,0.88550334]
[1646782991939,0.021143,2578.6,2578.3,1.64594183]
[1646782991940,0.01751667,2578.6,2578.3,1.64594183]
[1646782992143,0.02114302,2578.6,2578.3,1.64594183]
[1646782993144,0.01751667,2578.6,2578.3,2.80037362]
[1646782993392,0.02114306,2578.6,2578.3,2.80037362]
[1646782994193,0.02216532,2578.6,2578.3,3.10037362]
[1646782994394,0.02216532,2578.6,2578.3,1.94594183]
[1646782994594,0.02579171,2578.6,2578.3,1.94594183]
[1646782995597,0.02216532,2578.6,2578.3,1.94594183]
[1646782995798,0.0257917,2578.6,2578.3,1.64594183]
[1646782996699,0.02216532,2578.6,2578.3,1.64594183]
[1646782996901,0.0257917,2578.6,2578.3,1.64594183]
[1646782997944,0.02216532,2578.6,2578.3,1.64594183]
[1646782998144,0.0257917,2578.6,2578.3,1.64594183]
[1646782998342,0.0257917,2578.6,2578.3,1.59594183]
[1646782999143,0.02216532,2578.6,2578.3,1.59594183]
[1646782999442,0.0257917,2578.6,2578.3,1.59594183]
[1646783000248,0.02216532,2578.6,2578.3,1.59594183]
[1646783000547,0.0257917,2578.6,2578.3,1.59594183]
[1646783001392,0.02216532,2578.6,2578.3,1.59594183]
[1646783001792,0.0257917,2578.6,2578.3,1.59594183]
[1646783002597,0.02216532,2578.6,2578.3,1.59594183]
[1646783002994,0.0257917,2578.6,2578.3,1.59594183]
[1646783003794,0.02216532,2578.6,2578.3,1.59594183]
[1646783004195,0.0257917,2578.6,2578.3,1.59594183]
[1646783004638,0.00362638,2578.6,2578.3,1.59594183]
[1646783005046,0.71062508,2578.9,2578.3,1.59594183]
[1646783005246,0.00362638,2578.6,2578.3,1.59594183]
[1646783006346,0.90442508,2579.0,2578.3,1.59594183]
[1646783006547,0.00362638,2578.6,2578.3,1.59594183]
[1646783007546,0.90442508,2579.1,2578.3,1.59594183]
[1646783007748,0.00362638,2578.6,2578.3,1.59594183]
[1646783008301,0.00362638,2578.6,2578.3,1.89594183]
[1646783008690,0.90442508,2579.1,2578.3,1.89594183]
[1646783008889,0.00362638,2578.6,2578.3,1.89594183]
[1646783009891,0.90442508,2579.1,2578.3,1.89594183]
[1646783010092,0.00362638,2578.6,2578.3,1.89594183]
[1646783010993,0.07923774,2579.0,2578.4,1.55741593]
[1646783011192,0.07923774,2578.9,2578.4,1.55741593]
[1646783011392,0.00362638,2578.6,2578.4,1.55741593]
[1646783011796,0.08286412,2578.6,2578.4,1.55741593]
[1646783012042,0.07923774,2578.5,2578.3,1.59594183]
[1646783012248,0.07923774,2578.4,2578.3,1.59594183]
[1646783012446,0.78986282,2578.9,2578.3,1.59594183]
[1646783012646,0.00362635,2578.6,2578.3,1.59594183]
[1646783013252,0.00362635,2578.6,2578.3,1.89594183]
[1646783013449,0.07923774,2578.8,2578.3,1.89594183]
[1646783013649,0.00362638,2578.6,2578.3,1.89594183]
[1646783013849,0.08286412,2578.6,2578.3,1.89594183]
[1646783014051,0.07923774,2578.5,2578.3,1.89594183]
[1646783014251,0.07923774,2578.4,2578.3,1.89594183]
[1646783014454,0.07923774,2578.4,2578.3,3.46076874]
[1646783014654,0.07923774,2578.9,2578.3,3.46076874]
[1646783014854,0.07923774,2578.8,2578.4,1.56490645]
[1646783015054,0.00362635,2578.6,2578.4,1.56490645]
[1646783015555,0.08286409,2578.6,2578.4,1.56490645]
[1646783015993,0.07923774,2578.6,2578.4,1.56490645]
[1646783016194,0.08286408,2578.6,2578.4,1.56490645]
[1646783016396,0.07923774,2578.5,2578.3,1.89594183]
[1646783016599,0.00362634,2578.6,2578.4,1.56529632]
[1646783017101,0.07924002,2578.9,2578.4,1.56529632]
[1646783017302,0.00362634,2578.6,2578.4,1.56529632]
[1646783017804,0.08286636,2578.6,2578.4,1.56529632]
[1646783018004,0.07924002,2578.5,2578.4,1.56529632]
[1646783018804,0.00362634,2578.6,2578.4,1.56529632]
[1646783019405,0.07924002,2578.8,2578.4,1.56529632]
[1646783019642,0.00362248,2578.6,2578.4,1.56529632]
[1646783019844,0.0828625,2578.6,2578.4,1.56529632]
[1646783020044,0.07924002,2578.5,2578.4,1.56529632]
[1646783020446,0.00362248,2578.6,2578.4,5.06529632]
[1646783020646,0.07924002,2578.7,2578.5,3.5]
[1646783020846,1.2373,2579.2,2578.5,3.5]
[1646783020847,0.71062508,2579.0,2578.6,1.5668869]
[1646783021149,0.71062508,2579.0,2578.7,3.5]
[1646783021550,0.71062508,2579.0,2578.7,4.52593287]
[1646783021750,0.07923307,2578.9,2578.7,4.52593287]
[1646783021950,0.71062508,2579.0,2578.8,3.5]
[1646783022151,0.71424744,2579.0,2578.8,3.8]
[1646783022351,0.00362236,2579.0,2578.8,3.8]
[1646783022854,0.00362236,2579.0,2578.9,1.5680683]
[1646783023151,0.71062508,2579.1,2578.9,1.5680683]
[1646783023397,0.00362618,2579.0,2578.8,3.8]
[1646783023597,0.71425126,2579.0,2578.9,1.56895579]
[1646783024294,0.78985674,2579.0,2578.9,5.06895579]
[1646783024495,0.07923166,2579.0,2578.9,5.06895579]
[1646783024696,0.78985674,2579.0,2578.9,5.06895579]
[1646783025100,0.71062508,2579.0,2578.9,5.06895579]
[1646783025296,0.71062508,2579.0,2578.9,1.56895579]
[1646783025497,0.71062508,2579.1,2578.9,1.56895579]
[1646783025697,0.71425107,2579.1,2578.9,1.56895579]
[1646783026304,0.00362599,2579.1,2578.8,0.3]
[1646783026499,0.71139682,2578.9,2578.6,1.5339]
[1646783026699,0.71139682,2578.9,2578.7,1.5689551]
[1646783027752,0.79062848,2578.9,2578.7,1.5689551]
[1646783027952,0.07923166,2578.8,2578.7,1.5689551]
[1646783028353,0.71502292,2578.9,2578.7,1.5689551]
[1646783028557,0.71502292,2578.9,2578.3,1.95024183]
[1646783028755,0.79425458,2578.9,2578.4,1.56905254]
[1646783028960,0.07923166,2578.8,2578.4,1.56905254]
[1646783029155,0.07923166,2578.7,2578.4,1.56905254]
[1646783029356,0.00173013,2578.7,2578.4,1.56905254]
[1646783030155,0.71139682,2579.0,2578.4,1.56905254]
[1646783030655,0.00173013,2578.7,2578.4,1.56905254]
[1646783031402,0.71139682,2579.0,2578.4,1.56905254]
[1646783031806,0.00173013,2578.7,2578.4,1.56905254]
[1646783032604,0.71139682,2579.0,2578.4,1.56905254]
[1646783033004,0.00393231,2578.7,2578.4,1.56905254]
[1646783034006,0.71139682,2578.9,2578.4,1.56905254]
[1646783034215,0.00393231,2578.7,2578.4,1.56905254]
[1646783035053,0.71139682,2578.9,2578.4,1.56905254]
[1646783035352,0.00393231,2578.7,2578.4,1.56905254]
[1646783036353,0.71139682,2578.9,2578.4,1.56905254]
[1646783036553,0.00393231,2578.7,2578.4,1.56905254]
[1646783037454,0.71139682,2578.9,2578.4,1.56905254]
[1646783037855,0.00385858,2578.7,2578.4,1.56905254]
[1646783038698,0.71139682,2578.9,2578.4,1.56905254]
[1646783039098,0.00385858,2578.7,2578.4,1.56905254]
[1646783039899,0.71139682,2578.9,2578.4,1.56905254]
[1646783040097,0.71139682,2579.0,2578.4,1.56905254]
[1646783040300,0.00385858,2578.7,2578.4,1.56905254]
[1646783040898,0.00385858,2578.7,2578.4,2.46844434]
[1646783041100,0.71139682,2579.0,2578.4,0.8993918]
[1646783041300,0.00360283,2578.7,2578.4,0.8993918]
[1646783041498,0.00360283,2578.7,2578.3,1.95024183]
[1646783042349,0.71139682,2578.9,2578.3,1.95024183]
[1646783042551,0.71139682,2578.9,2578.3,3.08419795]
[1646783042751,0.71139682,2579.0,2578.3,3.08419795]
[1646783044354,0.71139682,2579.1,2578.3,3.08419795]
[1646783044558,0.1938,2579.2,2578.3,3.79029242]
[1646783044753,0.1938,2579.2,2578.3,15.64029242]
[1646783044954,0.00393218,2578.8,2578.3,15.64029242]
[1646783046198,0.00393218,2578.8,2578.4,11.85]
[1646783046799,0.00393218,2578.8,2578.4,12.85]
[1646783047209,0.71161489,2579.2,2578.8,0.00393206]
[1646783048107,0.71161489,2579.3,2578.8,0.00393206]
[1646783048307,3.42656994,2579.6,2578.8,0.00393206]
[1646783049407,3.42656994,2579.6,2579.1,1.09709164]
[1646783049651,0.94766994,2579.6,2579.1,1.39709164]
[1646783050051,0.7113087,2579.3,2579.1,1.39709164]
[1646783050852,0.1938,2579.7,2579.2,1.57281285]
[1646783050853,0.94766994,2579.6,2579.2,1.57281285]
[1646783051057,0.94766994,2579.6,2578.8,2.51333206]
[1646783051058,0.71138564,2579.3,2578.8,1.51333206]
[1646783051251,0.71138564,2579.3,2578.9,1.57270562]
[1646783051652,0.71138564,2579.3,2578.9,1.87270562]
[1646783051854,0.71138564,2579.3,2579.0,1.57270562]
[1646783052058,0.94766994,2579.6,2579.0,1.57270562]
[1646783052258,0.71129816,2579.3,2579.0,2.77919303]
[1646783052463,0.71129816,2579.3,2579.1,1.57270562]
[1646783052858,0.71129816,2579.3,2579.1,1.87270562]
[1646783053061,0.71129816,2579.3,2579.1,0.3]
[1646783053307,0.71129816,2579.3,2579.0,1.50648741]
[1646783053497,0.71129816,2579.3,2579.1,1.57230493]
[1646783054399,0.71129816,2579.3,2579.0,0.3]
[1646783054605,0.94766994,2579.5,2578.8,1.21333206]
[1646783054606,0.71129816,2579.2,2578.8,1.21333206]
[1646783054802,0.71129816,2579.1,2578.9,1.57195436]
[1646783055107,0.79052567,2579.0,2578.8,0.00393206]
[1646783055300,0.07922751,2578.9,2578.8,0.00393206]
[1646783055500,0.71129816,2579.0,2578.8,0.00393206]
[1646783055703,0.71129816,2578.9,2578.8,0.00393206]
[1646783055900,4.21129816,2578.9,2578.8,0.00393206]
[1646783056100,4.29040571,2578.9,2578.8,0.00393206]
[1646783056305,3.57922751,2578.9,2578.8,0.00393206]
[1646783057257,5.52689745,2578.9,2578.8,0.00393206]
[1646783057954,4.85011386,2578.9,2578.8,0.00393206]
[1646783058157,2.02689745,2578.9,2578.8,0.00393206]
[1646783058557,1.02689745,2578.9,2578.8,0.00393206]
[1646783059158,1.81555561,2578.9,2578.8,0.00393206]
[1646783060999,1.16788567,2578.9,2578.8,0.00393206]
[1646783061200,1.34024802,2578.9,2578.8,0.00393206]
[1646783061500,1.34024802,2578.9,2577.8,0.00393378]
[1646783061501,0.97049,2578.5,2577.8,0.00393378]
[1646783061701,1.1117502,2578.2,2577.8,0.00393378]
[1646783061903,0.07922751,2578.1,2577.8,0.00393378]
[1646783062102,0.07922751,2578.1,2577.8,1.56662232]
[1646783062402,0.07922751,2578.1,2577.4,0.38949155]
[1646783062602,0.07922751,2578.1,2577.8,0.00393321]
[1646783062603,3.18261752,2578.1,2577.8,0.00393321]
[1646783062808,0.07922751,2578.0,2577.8,0.00393321]
[1646783063402,0.97066,2577.9,2577.8,0.00393321]
[1646783063602,1.04988751,2577.9,2577.5,1.56220654]
[1646783063802,0.07922751,2577.8,2577.4,0.01573545]
[1646783064004,1.04986751,2577.8,2577.5,1.5613841]
[1646783064202,0.07922751,2577.7,2577.5,1.5613841]
[1646783064850,0.07922751,2577.7,2577.5,1.56531761]
[1646783065051,0.07922751,2577.7,2577.5,0.00393351]
[1646783065952,0.07922751,2577.7,2577.2,1.55972114]
[1646783066151,0.07922751,2577.7,2577.5,0.00379958]
[1646783066952,0.07922751,2577.7,2577.5,1.56352072]
[1646783067157,0.07922751,2577.7,2577.6,1.55972114]
[1646783067356,0.07922751,2577.7,2577.6,1.55025495]
[1646783067557,1.4938,2577.9,2577.7,0.15677102]
[1646783067558,1.3,2577.9,2577.7,0.15677102]
[1646783067768,0.07926379,2577.8,2577.7,0.15677102]
[1646783068156,0.07926379,2578.0,2577.7,1.70690287]
[1646783068401,0.07926379,2577.9,2577.7,0.15677102]
[1646783068699,0.07926379,2577.8,2577.7,0.15677102]
[1646783069099,0.07926379,2578.0,2577.7,0.15677102]
[1646783069299,0.07926358,2577.9,2577.7,0.15677102]
[1646783069500,0.97054,2578.1,2577.7,0.15677102]
[1646783069703,0.07926369,2578.0,2577.7,0.16040065]
[1646783070700,0.07926369,2578.0,2577.7,0.15677102]
[1646783070900,0.07926369,2578.0,2577.7,0.16040065]
[1646783071903,0.07926369,2578.0,2577.7,0.15677102]
[1646783072153,0.07926369,2578.0,2577.7,0.16040065]
[1646783073161,0.07926369,2578.0,2577.7,0.15677102]
[1646783073359,0.07926369,2578.0,2577.7,0.16038604]
[1646783074356,0.07926369,2578.0,2577.7,0.15677102]
[1646783074558,0.07926369,2578.0,2577.7,0.16038604]
[1646783075557,0.07926369,2578.0,2577.7,0.15677102]
[1646783075829,0.07926369,2578.0,2577.7,0.16038604]
[1646783076118,0.1938,2578.1,2577.7,0.16038604]
[1646783076315,0.1938,2578.1,2577.8,1.55219984]
[1646783076517,0.1938,2578.2,2577.9,3.5]
[1646783076715,1.0,2578.5,2577.9,3.5]
[1646783076917,0.07925599,2578.4,2577.7,3.65677102]
[1646783077121,0.07925599,2578.4,2577.8,1.55562956]
[1646783077320,0.07925599,2578.3,2577.8,1.85562956]
[1646783077522,0.07925599,2578.2,2577.9,1.55200965]
[1646783077722,0.1938,2578.7,2577.9,5.05200965]
[1646783077923,0.07925337,2578.6,2578.0,1.55200965]
[1646783078121,0.07925337,2578.6,2578.1,3.5]
[1646783078327,0.07925337,2578.6,2577.9,3.5]
[1646783078521,0.07925337,2578.6,2578.0,1.55187002]
[1646783078822,0.07925337,2578.5,2578.0,1.85187002]
[1646783079021,0.07925337,2578.4,2578.1,5.05187002]
[1646783079222,0.1938,2578.9,2577.9,3.8]
[1646783079423,0.07924964,2578.8,2578.0,1.55195592]
[1646783079657,0.1938,2578.7,2578.1,3.5]
[1646783079858,0.07924964,2578.6,2578.2,1.55182122]
[1646783080057,0.07924964,2578.5,2578.2,1.55182122]
[1646783080257,0.1938,2578.8,2578.2,1.55182122]
[1646783080457,0.07924725,2578.7,2578.2,1.55182122]
[1646783080862,0.07924725,2578.6,2578.2,1.55182122]
[1646783081059,0.07924725,2578.5,2578.2,1.55182122]
[1646783081260,0.1938,2578.8,2578.2,1.55182122]
[1646783081462,0.07924704,2578.7,2578.2,1.55182122]
[1646783081668,0.07924704,2578.7,2578.4,0.87191714]
[1646783081867,0.00361842,2578.9,2578.5,3.5]
[1646783081868,0.07924704,2578.6,2578.5,3.5]
[1646783082269,0.00361842,2578.9,2578.5,17.42744324]
[1646783082467,0.00361842,2578.9,2578.6,13.78924327]
[1646783082770,2.55124524,2579.7,2578.8,1.3576341]
[1646783082771,0.07923278,2579.2,2578.8,1.3576341]
[1646783082969,0.07922427,2579.8,2579.1,0.388]
[1646783083179,0.0792177,2579.7,2579.3,0.388]
[1646783083413,1.14164524,2580.4,2579.2,17.46124327]
[1646783083414,0.71088393,2580.3,2579.6,0.388]
[1646783083608,0.1938,2580.5,2579.6,0.388]
[1646783083609,0.1938,2580.5,2579.7,3.5]
[1646783083806,0.1937,2580.6,2579.9,1.0717506]
[1646783084307,0.00172682,2580.1,2579.9,1.3717506]
[1646783085107,0.1937,2580.7,2579.9,1.3717506]
[1646783085407,0.00172682,2580.1,2579.9,1.3717506]
[1646783086408,0.94784524,2581.1,2579.9,1.3717506]
[1646783086609,0.00172682,2580.1,2579.9,1.3717506]
[1646783087459,0.388,2581.0,2579.9,1.3717506]
[1646783087659,2.14154524,2581.2,2579.9,1.3717506]
[1646783087861,0.00393531,2580.1,2579.9,1.3717506]
[1646783088062,0.00393531,2580.1,2579.9,2.3409939]
[1646783088665,5.69511623,2581.3,2579.9,2.7289939]
[1646783088863,1.0,2581.3,2579.9,2.7289939]
[1646783089061,0.00374857,2580.1,2579.9,3.7289939]
[1646783090061,6.1266,2581.4,2579.9,3.7289939]
[1646783090260,0.00374857,2580.1,2579.9,3.7289939]
[1646783090460,0.00374857,2580.1,2579.9,15.5789939]
[1646783090814,1.6266,2581.4,2580.1,0.3917542]
[1646783091002,10.10632128,2581.7,2580.1,12.2417542]
[1646783091003,6.91309219,2581.7,2580.1,12.2417542]
[1646783091210,2.99183128,2581.7,2580.3,12.238]
[1646783091401,2.99183128,2581.7,2580.5,12.238]
[1646783091604,2.99183128,2581.7,2580.6,0.13819997]
[1646783092001,2.99183128,2581.7,2581.3,0.98127386]
[1646783092205,0.01103128,2581.7,2581.3,0.98127386]
[1646783092406,0.01103128,2581.7,2581.3,1.28127386]
[1646783092607,0.0038119,2581.6,2581.3,1.28127386]
[1646783093604,0.01103128,2581.7,2581.3,1.28127386]
[1646783093815,0.00172415,2581.6,2581.3,1.28127386]
[1646783094851,0.01103128,2581.7,2581.3,1.28127386]
[1646783095052,0.00172415,2581.6,2581.3,1.28127386]
[1646783096055,0.01103128,2581.7,2581.3,1.28127386]
[1646783096360,0.00394277,2581.6,2581.3,1.28127386]
[1646783096755,0.00394277,2581.6,2581.3,0.3]
[1646783096957,0.00394277,2581.6,2580.9,5.337]
[1646783097158,0.01103128,2581.7,2580.9,5.337]
[1646783097658,0.00394277,2581.6,2580.9,5.337]
[1646783098311,0.00394277,2581.6,2580.9,5.637]
[1646783098501,0.01103128,2581.7,2581.4,0.89397756]
[1646783099503,0.01103128,2581.7,2581.5,0.02012312]
[1646783099899,0.01497397,2581.7,2581.5,0.02012312]
[1646783100899,0.01103128,2581.7,2581.5,0.02012312]
[1646783101199,0.01471167,2581.7,2581.5,0.02012312]
[1646783102051,0.01103128,2581.7,2581.5,0.02012312]
[1646783102255,0.01471167,2581.7,2581.5,0.02012312]
[1646783103356,0.01103128,2581.7,2581.5,0.02012312]
[1646783103557,0.01471167,2581.7,2581.5,0.02012312]
[1646783104459,0.01103128,2581.7,2581.6,0.01962497]
[1646783104658,0.01496954,2581.7,2581.6,0.01962497]
[1646783105661,0.01103128,2581.7,2581.4,0.75844758]
[1646783105912,0.01103128,2581.7,2581.4,1.05844758]
[1646783106716,0.01103128,2581.7,2581.5,3.35877539]
[1646783106914,0.01103128,2581.7,2581.4,14.15644758]
[1646783107114,0.01496958,2581.7,2581.4,13.85644758]
[1646783107313,0.01496958,2581.7,2581.4,14.85644758]
[1646783108115,0.01103128,2581.7,2581.4,14.85644758]
[1646783108315,0.01470903,2581.7,2581.4,14.85644758]
[1646783109218,0.45945024,2581.6,2581.4,14.85644758]
[1646783109415,0.01103128,2581.7,2581.6,12.238]
[1646783109654,0.01470903,2581.7,2581.6,12.798]
[1646783109854,0.01470903,2581.7,2581.6,14.098]
[1646783110455,0.01103128,2581.7,2581.6,2.248]
[1646783110859,0.01213408,2582.5,2581.8,0.01473406]
[1646783112963,3.51213408,2582.5,2581.8,0.01473406]
[1646783113399,4.51213408,2582.5,2581.8,0.01473406]
[1646783113600,0.94276629,2582.2,2581.8,0.01473406]
[1646783113803,4.46897,2582.1,2581.8,0.01473406]
[1646783114201,5.46897,2582.1,2581.8,0.01473406]
[1646783114407,4.5,2582.1,2581.8,0.01473406]
[1646783114600,1.0,2582.1,2581.8,0.01473406]
[1646783114801,0.1935,2582.2,2581.8,0.01473406]
[1646783115200,0.1935,2582.2,2582.0,0.034446]
[1646783115601,0.0039423,2582.1,2582.0,0.034446]
[1646783116605,0.01213408,2582.5,2582.0,0.034446]
[1646783116803,0.00394226,2582.2,2582.0,0.034446]
[1646783117660,0.01213408,2582.5,2582.0,0.034446]
[1646783117859,0.00394222,2582.2,2582.0,0.034446]
[1646783118061,0.1710763,2582.8,2582.0,0.034446]
[1646783118260,0.1936,2582.9,2582.0,0.034446]
[1646783118462,4.91165182,2583.1,2582.0,0.034446]
[1646783118863,4.79505182,2583.1,2582.0,0.034446]
[1646783119064,2.8922,2583.1,2582.0,0.034446]
[1646783119261,2.7756,2583.1,2582.0,0.034446]
[1646783119461,3.7756,2583.1,2582.7,1.12128153]
[1646783119669,1.3,2583.2,2582.7,1.42128153]
[1646783119864,1.0,2583.1,2582.7,1.42128153]
[1646783120062,4.67251263,2583.5,2582.7,1.42128153]
[1646783120275,0.0038203,2583.1,2582.7,1.42128153]
[1646783120464,0.0038203,2583.1,2582.7,0.3]
[1646783120913,0.0038203,2583.1,2582.1,1.1775]
[1646783121112,0.0038203,2583.1,2582.1,1.4775]
[1646783121314,1.26856,2583.2,2582.1,1.4775]
[1646783121513,0.00350923,2582.7,2582.1,1.4775]
[1646783121811,0.00350923,2582.7,2582.5,1.47359838]
[1646783122223,0.00350923,2582.7,2582.5,0.3]
[1646783122417,1.26856,2583.2,2582.1,1.4775]
[1646783122716,0.00350923,2582.7,2582.1,1.4775]
[1646783123418,0.00350923,2582.7,2582.4,0.91994756]
[1646783123617,1.29841,2583.2,2582.4,0.91994756]
[1646783123820,1.29841,2583.2,2582.4,1.21994756]
[1646783124018,0.00333627,2582.5,2582.4,1.21994756]
[1646783124860,1.29841,2583.2,2582.4,1.21994756]
[1646783125256,0.00333624,2582.6,2582.4,1.21994756]
[1646783126057,1.2686,2582.9,2582.4,1.21994756]
[1646783126355,0.0033791,2582.6,2582.4,1.21994756]
[1646783127366,1.2686,2582.9,2582.3,0.01719391]
[1646783127559,0.0033688,2582.6,2582.3,0.01719391]
[1646783128408,1.2686,2582.9,2582.5,1.0193937]
[1646783128809,0.00336884,2582.6,2582.5,1.3193937]
[1646783129712,1.26856,2583.2,2582.5,1.3193937]
[1646783130015,0.00336288,2582.7,2582.5,1.35440323]
[1646783130809,2.21629524,2583.3,2582.5,1.35440323]
[1646783131008,0.00336209,2582.7,2582.5,1.35440323]
[1646783131210,0.00336209,2582.7,2582.5,0.33500953]
[1646783131611,0.00336209,2582.7,2582.5,0.03500953]
[1646783132055,2.21629524,2583.3,2582.5,0.03500953]
[1646783132259,0.00336209,2582.7,2582.5,0.03500953]
[1646783133259,2.21629524,2583.3,2582.5,0.03500953]
[1646783133461,0.00336297,2582.7,2582.5,0.03500953]
[1646783134459,2.21629524,2583.3,2582.5,0.03500953]
[1646783134860,0.00356745,2582.7,2582.5,0.03500953]
[1646783135266,0.00356745,2582.7,2582.5,0.01710315]
[1646783135663,0.94784524,2583.2,2582.5,0.01710315]
[1646783135907,0.00356745,2582.7,2582.5,0.01710315]
[1646783136909,0.94784524,2583.2,2582.5,0.01710315]
[1646783137111,0.00356044,2582.7,2582.5,0.01710315]
[1646783138115,0.94784524,2583.2,2582.5,0.01710315]
[1646783138314,0.00334678,2582.7,2582.5,0.01710315]
[1646783139418,0.00143781,2582.7,2582.5,0.01710315]
[1646783139960,0.94928305,2582.7,2582.5,0.01710315]
[1646783140565,0.44784524,2582.7,2582.5,0.02318905]
[1646783140760,0.44929124,2582.7,2582.5,0.02318905]
[1646783141560,0.44784524,2582.7,2582.5,0.02318905]
[1646783141961,0.45151898,2582.7,2582.5,0.02318905]
[1646783142966,0.44784524,2582.7,2582.5,0.02318905]
[1646783143171,0.45151898,2582.7,2582.5,0.02318905]
[1646783144004,1.40876309,2582.8,2582.5,0.02318905]
[1646783144204,3.5,2582.7,2582.5,0.02318905]
[1646783144405,3.50366186,2582.7,2582.5,0.02318905]
[1646783145304,3.5,2582.7,2582.6,0.02383528]
[1646783145507,3.50366186,2582.7,2582.6,0.02383528]
[1646783145808,4.91242495,2582.7,2582.6,0.02383528]
[1646783146404,1.41242495,2582.7,2582.6,0.02383528]
[1646783146606,0.3,2582.8,2582.6,0.02383528]
[1646783146805,0.00353823,2582.8,2582.6,0.02383528]
[1646783147053,1.41230132,2582.8,2582.6,0.02383528]
[1646783147260,1.5,2582.7,2582.6,0.02383528]
[1646783147858,2.90876309,2582.7,2582.6,0.02383528]
[1646783148058,1.5,2582.7,2582.6,0.02383528]
[1646783148462,5.0,2582.7,2582.6,0.02383528]
[1646783148859,1.5,2582.7,2582.6,0.02383528]
[1646783149059,2.90876309,2582.7,2582.6,0.02383528]
[1646783149559,2.5,2582.7,2582.6,0.02383528]
[1646783149762,1.5,2582.7,2582.6,0.04702433]
[1646783149959,2.91888841,2582.7,2582.6,0.02318905]
[1646783150458,3.91888841,2582.7,2582.6,0.02318905]
[1646783150659,2.91888841,2582.7,2582.6,0.02318905]
[1646783150904,3.91888841,2582.7,2582.6,0.02318905]
[1646783151109,2.5,2582.7,2582.6,0.02318905]
[1646783151308,1.5,2582.7,2582.6,0.02318905]
[1646783152911,2.91969631,2582.7,2582.6,0.02318905]
[1646783153110,1.5,2582.7,2582.6,0.02318905]
[1646783154555,1.5,2582.7,2582.6,0.04361929]
[1646783155956,2.41969631,2582.7,2582.6,0.04361929]
[1646783156755,2.41984087,2582.7,2582.6,0.04361929]
[1646783157859,1.0,2582.7,2582.6,0.04361929]
[1646783158711,1.0,2582.7,2582.6,0.02043024]
[1646783159016,1.3,2582.7,2582.6,0.02043024]
[1646783159411,3.19058368,2582.7,2582.6,0.02043024]
[1646783159614,1.3,2582.7,2582.6,0.02043024]
[1646783159813,2.0,2582.7,2582.6,0.02043024]
[1646783160013,2.42042776,2582.7,2582.6,0.02043024]
[1646783160714,2.42042776,2582.7,2582.6,0.01785704]
[1646783161114,1.0,2582.7,2582.6,0.01785704]
[1646783161315,2.42042776,2582.7,2582.6,0.01785704]
[1646783163462,1.0,2582.7,2582.6,0.01785704]
[1646783165563,1.02679605,2582.7,2581.8,0.20823406]
[1646783165805,1.91585227,2582.6,2581.9,1.58283448]
[1646783166008,0.94721227,2582.5,2582.0,0.1935]
[1646783166413,2.88483227,2582.5,2581.9,0.1935]
[1646783166612,0.94721227,2582.4,2581.9,0.1935]
[1646783167009,1.91599227,2582.4,2581.8,4.66923406]
[1646783167213,0.00355901,2582.3,2581.9,1.58299472]
[1646783168211,2.21599227,2582.4,2581.9,1.58299472]
[1646783168413,0.00335875,2582.3,2581.9,1.58299472]
[1646783169218,0.97220875,2582.3,2581.9,1.58299472]
[1646783169413,0.96885,2582.3,2581.9,1.58299472]
[1646783169657,0.97220232,2582.3,2581.9,1.58299472]
[1646783169856,0.97220232,2582.3,2581.8,1.16923406]
[1646783169857,1.91941459,2582.3,2581.8,0.01473406]
[1646783170657,0.5,2582.2,2581.8,0.01473406]
[1646783170858,1.96901,2582.2,2581.8,0.01473406]
[1646783171055,2.91622227,2582.2,2581.8,0.01473406]
[1646783171456,1.91622227,2582.2,2581.8,0.01473406]
[1646783171863,0.96901,2582.2,2581.8,0.01473406]
[1646783174105,0.99655619,2582.2,2581.8,0.01473406]
[1646783175706,0.99655619,2582.2,2581.9,1.58301493]
[1646783175905,0.99655619,2582.2,2581.8,0.01473406]
[1646783176710,0.99655619,2582.2,2581.9,1.58302485]
[1646783176906,0.99655619,2582.2,2581.8,0.01473406]
[1646783177764,0.99655619,2582.2,2581.9,1.5830169]
[1646783179362,0.02754619,2582.2,2581.9,1.5830169]
[1646783180561,0.02754619,2582.2,2581.9,1.58194273]
[1646783181406,0.02754619,2582.2,2582.0,0.97077115]
[1646783183913,0.02754619,2582.2,2581.8,0.01473406]
[1646783189107,0.04104243,2582.2,2581.8,0.01473406]
[1646783191606,0.03985371,2582.2,2581.8,0.01473406]
[1646783192765,0.03985371,2582.2,2581.7,0.56]
[1646783194165,0.03985371,2582.2,2581.7,0.3]
[1646783194365,0.03985371,2582.2,2581.6,1.497]
[1646783196209,1.26872,2582.5,2581.6,1.497]
[1646783196410,0.97706227,2582.6,2581.7,1.0]
[1646783196812,1.94721227,2582.7,2581.7,1.0]
[1646783198122,0.94721227,2582.6,2581.7,1.0]
[1646783198318,1.91592227,2582.6,2581.7,1.0]
[1646783198518,0.00143396,2582.4,2581.7,1.0]
[1646783199318,0.03280385,2582.2,2581.7,1.0]
[1646783199958,0.03280385,2582.2,2581.6,2.497]
[1646783200358,0.03280385,2582.2,2581.6,1.497]
[1646783200766,0.03280385,2582.2,2581.7,1.58285529]
[1646783209161,0.90160385,2582.3,2581.7,1.58285529]
[1646783209762,0.03613408,2582.2,2581.7,1.58285529]
[1646783212516,3.83613408,2582.2,2581.7,1.58285529]
[1646783212716,5.78334635,2582.2,2581.8,1.58285529]
[1646783212917,5.81321635,2582.2,2581.4,1.59637851]
[1646783213116,0.96897,2582.0,2581.5,1.58312487]
[1646783213316,3.5,2581.9,2581.5,1.58312487]
[1646783214116,4.47568202,2581.9,2581.6,1.58312487]
[1646783214317,5.77568202,2581.9,2581.2,0.01352397]
[1646783214563,1.93839,2581.8,2581.3,1.58329893]
[1646783214760,3.5,2581.7,2581.3,1.58329893]
[1646783214963,3.8,2581.7,2581.3,1.58329893]
[1646783215166,4.8,2581.7,2581.4,1.58329893]
[1646783215362,4.8,2581.7,2581.0,0.01352442]
[1646783215563,4.8,2581.7,2581.1,1.58333181]
[1646783216165,6.73838,2581.7,2581.1,1.58333181]
[1646783216368,0.96923,2581.5,2581.2,1.58333181]
[1646783216561,0.96923,2581.5,2580.7,2.3834]
[1646783216562,4.46923,2581.5,2581.3,1.58333181]
[1646783216865,0.96926,2581.4,2580.9,0.0135171]
[1646783217062,0.96926,2581.4,2581.0,1.58337342]
[1646783217666,0.96926,2581.4,2581.1,1.58337342]
[1646783217864,0.96926,2581.4,2581.2,1.58337342]
[1646783218064,0.96926,2581.4,2581.3,1.58337342]
[1646783218511,2.26923,2581.5,2581.3,1.58337342]
[1646783218712,1.26923,2581.5,2581.4,1.58337342]
[1646783218920,1.26923,2581.5,2580.8,0.01351725]
[1646783219111,1.26923,2581.5,2580.9,1.58337342]
[1646783220113,1.26923,2581.5,2581.0,1.58337342]